[Event "Polugaevsky Memorial 2019"]
[Site "Samara"]
[Date "2019.07.15"]
[Round "6.9"]
[White "Lysenko, Margarita"]
[Black "Kuderinov Kirill"]
[Result "1/2-1/2"]
[ECO "E20"]
[WhiteElo "2224"]
[BlackElo "2439"]
[Annotator "ChessBase"]
[PlyCount "81"]
[EventDate "2019.07.10"]
[EventType "swiss"]
[EventCountry "RUS"]
[SourceTitle "playchess.com"]
[Source "ChessBase"]
[SourceQuality "1"]
[TimeControl "5400+30"]

1. d4 {[%emt 0:00:00]} Nf6 {[%emt 0:00:00]} 2. c4 {[%emt 0:00:00]} e6 {[%emt 0:00:00]} 3. Nc3 {[%emt 0:00:00]} Bb4 {[%emt 0:00:00]} 4. f3 {[%emt 0:00:03]} O-O {[%emt 0:04:08]} 5. a3 {[%emt 0:00:17]} Be7 {[%emt 0:00:14]} 6. e4 {[%emt 0:00:39]} d5 {[%emt 0:00:14]} 7. e5 {[%emt 0:01:01]} Ne8 {[%emt 0:00:11]} 8. cxd5 {[%emt 0:05:05]} exd5 {[%emt 0:00:04]} 9. f4 {[%emt 0:00:53]} c5 {[%emt 0:01:10]} 10. Nf3 {[%emt 0:05:29]} Nc6 {[%emt 0:04:37]} 11. Be3 {[%emt 0:12:25]} cxd4 {[%emt 0:19:44]} 12. Nxd4 {[%emt 0:00:29]} f6 {[%emt 0:00:17]} 13. Bb5 {[%emt 0:17:12]} Nxd4 {[%emt 0:01:58]} 14. Bxd4 {[%emt 0:18:05]} fxe5 {[%emt 0:05:28]} 15. Bxe5 {[%emt 0:01:09]} Nf6 {[%emt 0:00:10]} 16. O-O {[%emt 0:05:19]} Be6 {[%emt 0:10:48]} 17. Be2 {[%emt 0:07:46]} Ne4 {[%emt 0:01:45]} 18. Nxe4 {[%emt 0:01:56]} dxe4 {[%emt 0:00:05]} 19. Qa4 {[%emt 0:01:56]} Qb6+ {[%emt 0:02:34]} 20. Kh1 {[%emt 0:00:49]} Bf5 {[%emt 0:00:51]} 21. g4 {[%emt 0:03:49]} Bg6 {[%emt 0:01:00]} 22. Bc4+ {[%emt 0:08:55]} Kh8 {[%emt 0:00:35]} 23. Bd5 {[%emt 0:00:49]} Rad8 {[%emt 0:05:08]} 24. Bxe4 {[%emt 0:00:55]} Qa6 {[%emt 0:00:45]} 25. Qc2 {[%emt 0:01:23]} Rd2 {[%emt 0:00:20]} 26. Qxd2 {[%emt 0:01:05]} Bxe4+ {[%emt 0:00:07]} 27. Kg1 {[%emt 0:00:07]} Bc5+ {[%emt 0:00:35]} 28. Rf2 {[%emt 0:00:09]} Qg6 {[%emt 0:07:41]} 29. h3 {[%emt 0:01:25]} Bc6 {[%emt 0:03:21]} 30. Kh2 {[%emt 0:01:09]} Bxf2 {[%emt 0:01:47]} 31. Qxf2 {[%emt 0:00:08]} Qd3 {[%emt 0:00:27]} 32. Re1 {[%emt 0:01:05]} Kg8 {[%emt 0:00:11]} 33. Bc3 {[%emt 0:01:41]} Qd6 {[%emt 0:00:22]} 34. Qd4 {[%emt 0:01:54]} Qxf4+ {[%emt 0:01:48]} 35. Qxf4 {[%emt 0:00:17]} Rxf4 {[%emt 0:00:05]} 36. Re7 {[%emt 0:00:46]} Rf7 {[%emt 0:00:36]} 37. Rxf7 {[%emt 0:00:17]} Kxf7 {[%emt 0:00:04]} 38. Kg3 {[%emt 0:00:07]} g6 {[%emt 0:00:04]} 39. Kf4 {[%emt 0:00:08]} a6 {[%emt 0:00:04]} 40. h4 {[%emt 0:00:00]} h5 {[%emt 0:00:00]} 41. gxh5 {[%emt 0:00:00]} 1/2-1/2

[Event "Polugaevsky Memorial 2019"]
[Site "Samara"]
[Date "2019.07.15"]
[Round "6.10"]
[White "Shapiro, David"]
[Black "Mochalin, Faddey"]
[Result "1/2-1/2"]
[ECO "A00"]
[WhiteElo "2410"]
[BlackElo "2115"]
[Annotator "ChessBase"]
[PlyCount "229"]
[EventDate "2019.07.10"]
[EventType "swiss"]
[EventCountry "RUS"]
[SourceTitle "playchess.com"]
[Source "ChessBase"]
[SourceQuality "1"]
[TimeControl "5400+30"]

1. g3 {[%emt 0:00:00]} d5 {[%emt 0:00:00]} 2. Bg2 {[%emt 0:00:00]} c6 {[%emt 0:00:16]} 3. d4 {[%emt 0:00:00]} Nf6 {[%emt 0:01:39]} 4. Nf3 {[%emt 0:00:08]} Bf5 {[%emt 0:00:31]} 5. c4 {[%emt 0:00:13]} e6 {[%emt 0:00:30]} 6. Nc3 {[%emt 0:00:10]} h6 {[%emt 0:02:10]} 7. Qb3 {[%emt 0:00:08]} Qb6 {[%emt 0:01:09]} 8. c5 {[%emt 0:00:09]} Qxb3 {[%emt 0:03:45]} 9. axb3 {[%emt 0:00:10]} Na6 {[%emt 0:00:33]} 10. Ne5 {[%emt 0:08:50]} Nd7 {[%emt 0:18:03]} 11. Nxc6 {[%emt 0:12:03]} Naxc5 {[%emt 0:01:33]} 12. Na5 {[%emt 0:00:07]} b6 {[%emt 0:03:29]} 13. dxc5 {[%emt 0:00:36]} bxa5 {[%emt 0:00:12]} 14. e4 {[%emt 0:22:29]} dxe4 {[%emt 0:04:12]} 15. Nxe4 {[%emt 0:00:37]} Bxe4 {[%emt 0:00:43]} 16. Bxe4 {[%emt 0:00:02]} Rc8 {[%emt 0:00:16]} 17. Bd2 {[%emt 0:11:00]} Nxc5 {[%emt 0:08:11]} 18. Bc2 {[%emt 0:00:08]} Nd7 {[%emt 0:05:23]} 19. Bd3 {[%emt 0:10:03]} Bb4 {[%emt 0:11:23]} 20. Ke2 {[%emt 0:02:24]} Bxd2 {[%emt 0:12:20]} 21. Kxd2 {[%emt 0:00:02]} Nc5 {[%emt 0:00:35]} 22. Bc4 {[%emt 0:06:18]} a4 {[%emt 0:02:05]} 23. Ke3 {[%emt 0:00:12]} Rb8 {[%emt 0:07:53]} 24. bxa4 {[%emt 0:03:37]} Ke7 {[%emt 0:02:48]} 25. Rab1 {[%emt 0:10:35]} Nxa4 {[%emt 0:02:11]} 26. b3 {[%emt 0:02:28]} Nb6 {[%emt 0:00:49]} 27. Ra1 {[%emt 0:01:03]} Rb7 {[%emt 0:00:31]} 28. Bd3 {[%emt 0:01:24]} Nd5+ {[%emt 0:03:05]} 29. Ke2 {[%emt 0:00:19]} Rd8 {[%emt 0:01:56]} 30. Rhc1 {[%emt 0:01:17]} Kf6 {[%emt 0:00:51]} 31. Ra3 {[%emt 0:01:40]} Rdb8 {[%emt 0:02:29]} 32. Bc4 {[%emt 0:01:11]} Ne7 {[%emt 0:02:12]} 33. Ra6 {[%emt 0:01:23]} Nc8 {[%emt 0:01:56]} 34. Kf1 {[%emt 0:02:40]} Rc7 {[%emt 0:00:34]} 35. Rca1 {[%emt 0:00:25]} Rb6 {[%emt 0:00:08]} 36. R6a5 {[%emt 0:00:35]} g6 {[%emt 0:00:27]} 37. h4 {[%emt 0:00:28]} h5 {[%emt 0:00:14]} 38. Kg2 {[%emt 0:00:24]} Ke7 {[%emt 0:00:21]} 39. R1a3 {[%emt 0:01:03]} Kf6 {[%emt 0:01:21]} 40. R5a4 {[%emt 0:00:00]} Ke7 {[%emt 0:00:00]} 41. Ba6 {[%emt 0:00:00]} Nd6 {[%emt 0:00:00]} 42. Be2 {[%emt 0:00:00]} Kf6 {[%emt 0:00:00]} 43. Rxa7 {[%emt 0:00:00]} Rxa7 {[%emt 0:00:00]} 44. Rxa7 {[%emt 0:00:00]} Rxb3 {[%emt 0:00:00]} 45. Rd7 {[%emt 0:00:00]} Nf5 {[%emt 0:00:00]} 46. Bd3 {[%emt 0:00:00]} Ne7 {[%emt 0:00:00]} 47. Be4 {[%emt 0:00:00]} Rb2 {[%emt 0:00:00]} 48. Kf3 {[%emt 0:00:00]} Ng8 {[%emt 0:00:00]} 49. Kg2 {[%emt 0:00:00]} Nh6 {[%emt 0:00:00]} 50. Bf3 {[%emt 0:00:00]} Ra2 {[%emt 0:00:00]} 51. Rb7 {[%emt 0:00:00]} Nf5 {[%emt 0:00:00]} 52. Rd7 {[%emt 0:00:00]} Ne3+ {[%emt 0:00:00]} 53. Kg1 {[%emt 0:00:00]} Nc4 {[%emt 0:00:00]} 54. Rd4 {[%emt 0:00:00]} Rc2 {[%emt 0:00:00]} 55. Be2 {[%emt 0:00:00]} Ne5 {[%emt 0:00:00]} 56. Bd1 {[%emt 0:00:00]} Rb2 {[%emt 0:00:00]} 57. Kf1 {[%emt 0:00:00]} Kg7 {[%emt 0:00:00]} 58. Be2 {[%emt 0:00:00]} Ra2 {[%emt 0:00:00]} 59. Rb4 {[%emt 0:00:00]} Nd7 {[%emt 0:00:00]} 60. Rd4 {[%emt 0:00:00]} Nc5 {[%emt 0:00:00]} 61. Rb4 {[%emt 0:00:00]} Kf8 {[%emt 0:00:00]} 62. Rc4 {[%emt 0:00:00]} Nb3 {[%emt 0:00:00]} 63. Ke1 {[%emt 0:00:00]} Ra1+ {[%emt 0:00:00]} 64. Bd1 {[%emt 0:00:06]} Kg7 65. Ke2 Na5 {[%emt 0:00:00]} 66. Rc7 {[%emt 0:01:39]} Rb1 {[%emt 0:00:00]} 67. Ba4 {[%emt 0:02:18]} Rb8 {[%emt 0:00:00]} 68. Kf1 {[%emt 0:01:39]} Nb7 {[%emt 0:00:00]} 69. Bc6 {[%emt 0:01:16]} Nd6 {[%emt 0:00:00]} 70. Bf3 {[%emt 0:00:02]} Rb3 {[%emt 0:00:00]} 71. Kg2 {[%emt 0:00:33]} Kf6 {[%emt 0:00:00]} 72. Ra7 {[%emt 0:00:29]} Nc4 {[%emt 0:00:00]} 73. Be2 {[%emt 0:00:39]} Ne5 {[%emt 0:00:00]} 74. Ra4 {[%emt 0:00:23]} Rb2 {[%emt 0:00:00]} 75. Kf1 {[%emt 0:00:10]} Rb7 {[%emt 0:00:07]} 76. Ra5 {[%emt 0:01:04]} Nc6 {[%emt 0:00:13]} 77. Ra2 {[%emt 0:01:37]} Nd4 {[%emt 0:00:38]} 78. Bd3 {[%emt 0:01:00]} Ke7 {[%emt 0:00:45]} 79. Be4 {[%emt 0:00:36]} Rd7 {[%emt 0:00:25]} 80. Rb2 {[%emt 0:01:42]} f5 {[%emt 0:00:24]} 81. Bb1 {[%emt 0:00:40]} Kf6 {[%emt 0:01:27]} 82. Rb6 {[%emt 0:00:24]} Kg7 {[%emt 0:00:35]} 83. f4 {[%emt 0:01:21]} Kf6 {[%emt 0:00:44]} 84. Kf2 {[%emt 0:00:05]} Rc7 {[%emt 0:00:16]} 85. Ke3 {[%emt 0:00:34]} Nc6 {[%emt 0:00:38]} 86. Ba2 {[%emt 0:00:39]} Nd8 {[%emt 0:00:16]} 87. Kd2 {[%emt 0:01:26]} Re7 {[%emt 0:00:48]} 88. Bc4 {[%emt 0:01:01]} Nf7 {[%emt 0:00:34]} 89. Ke3 {[%emt 0:00:16]} Nd8 {[%emt 0:00:24]} 90. Kf2 {[%emt 0:00:54]} Rc7 {[%emt 0:00:09]} 91. Bd3 {[%emt 0:00:51]} Nf7 {[%emt 0:00:41]} 92. Ke3 {[%emt 0:00:23]} Nh6 {[%emt 0:00:13]} 93. Kd4 {[%emt 0:00:20]} Rd7+ {[%emt 0:00:31]} 94. Kc3 {[%emt 0:00:06]} Ng4 {[%emt 0:00:32]} 95. Bc4 {[%emt 0:00:12]} Re7 {[%emt 0:00:52]} 96. Kd4 {[%emt 0:00:08]} Nh6 {[%emt 0:02:12]} 97. Bb3 {[%emt 0:01:04]} Nf7 {[%emt 0:00:06]} 98. Ke3 {[%emt 0:00:54]} Nd8 {[%emt 0:00:11]} 99. Ke2 {[%emt 0:00:47]} Kf7 {[%emt 0:00:43]} 100. Ke3 {[%emt 0:00:23]} Nb7 {[%emt 0:00:11]} 101. Kd4 {[%emt 0:00:27]} Rd7+ {[%emt 0:00:14]} 102. Ke5 {[%emt 0:01:41]} Nc5 {[%emt 0:01:27]} 103. Bxe6+ {[%emt 0:00:42]} Nxe6 {[%emt 0:01:27]} 104. Rxe6 {[%emt 0:00:04]} Rd3 {[%emt 0:00:24]} 105. Ra6 {[%emt 0:01:13]} Re3+ {[%emt 0:00:36]} 106. Kd5 {[%emt 0:00:02]} Kg7 {[%emt 0:01:48]} 107. Ra7+ {[%emt 0:01:08]} Kh6 {[%emt 0:00:06]} 108. Rb7 {[%emt 0:00:59]} Rxg3 {[%emt 0:00:17]} 109. Ke6 {[%emt 0:00:03]} Re3+ {[%emt 0:01:08]} 110. Kf7 {[%emt 0:00:46]} Rc3 {[%emt 0:00:21]} 111. Ra7 {[%emt 0:01:28]} Rc4 {[%emt 0:00:25]} 112. Kg8 {[%emt 0:01:05]} Rc8+ {[%emt 0:00:12]} 113. Kf7 {[%emt 0:00:00]} Rh8 {[%emt 0:01:34]} 114. Kf6 {[%emt 0:01:07]} Rf8+ {[%emt 0:00:16]} 115. Rf7 {[%emt 0:00:52]} 1/2-1/2

[Event "Polugaevsky Memorial 2019"]
[Site "Samara"]
[Date "2019.07.16"]
[Round "7.1"]
[White "Utegaliyev, Azamat"]
[Black "Gabrielian, Artur"]
[Result "1/2-1/2"]
[ECO "A20"]
[WhiteElo "2510"]
[BlackElo "2458"]
[Annotator "ChessBase"]
[PlyCount "141"]
[EventDate "2019.07.10"]
[EventType "swiss"]
[EventCountry "RUS"]
[SourceTitle "playchess.com"]
[Source "ChessBase"]
[SourceQuality "1"]
[TimeControl "5400+30"]

1. c4 {[%emt 0:14:33]} e5 {[%emt 0:00:26]} 2. g3 {[%emt 0:00:11]} Nc6 {[%emt 0:01:12]} 3. Bg2 {[%emt 0:00:14]} Nf6 {[%emt 0:00:17]} 4. Nc3 {[%emt 0:00:17]} Bc5 {[%emt 0:00:13]} 5. e3 {[%emt 0:03:37]} O-O {[%emt 0:03:19]} 6. Nge2 {[%emt 0:00:59]} d6 {[%emt 0:01:32]} 7. d3 {[%emt 0:03:22]} a6 {[%emt 0:04:57]} 8. O-O {[%emt 0:02:20]} Ba7 {[%emt 0:00:33]} 9. a3 {[%emt 0:00:32]} Bf5 {[%emt 0:02:16]} 10. h3 {[%emt 0:00:52]} Re8 {[%emt 0:10:27]} 11. e4 {[%emt 0:04:51]} Bd7 {[%emt 0:00:57]} 12. Kh2 {[%emt 0:00:13]} Nd4 {[%emt 0:03:11]} 13. f4 {[%emt 0:04:27]} Nxe2 {[%emt 0:03:05]} 14. Qxe2 {[%emt 0:00:57]} b5 {[%emt 0:01:56]} 15. g4 {[%emt 0:02:57]} Bc6 {[%emt 0:16:03]} 16. fxe5 {[%emt 0:05:59]} Rxe5 {[%emt 0:03:46]} 17. Bf4 {[%emt 0:03:44]} Re6 {[%emt 0:01:41]} 18. cxb5 {[%emt 0:04:42]} axb5 {[%emt 0:04:20]} 19. Qd2 {[%emt 0:00:05]} Bd4 {[%emt 0:05:47]} 20. Ne2 {[%emt 0:11:25]} Be5 {[%emt 0:01:23]} 21. Rae1 {[%emt 0:01:01]} Bb7 {[%emt 0:13:03]} 22. Ng3 {[%emt 0:23:02]} c5 {[%emt 0:00:05]} 23. Bxe5 {[%emt 0:00:42]} dxe5 {[%emt 0:01:05]} 24. g5 {[%emt 0:01:02]} Ne8 {[%emt 0:01:38]} 25. Qf2 {[%emt 0:00:20]} Nd6 {[%emt 0:01:32]} 26. h4 {[%emt 0:00:20]} Qc7 {[%emt 0:02:05]} 27. Bh3 {[%emt 0:02:00]} Ree8 {[%emt 0:01:53]} 28. h5 {[%emt 0:03:58]} Bc8 {[%emt 0:00:38]} 29. Bxc8 {[%emt 0:00:40]} Raxc8 {[%emt 0:02:49]} 30. h6 {[%emt 0:00:09]} Qe7 {[%emt 0:01:00]} 31. hxg7 {[%emt 0:01:10]} Qxg5 {[%emt 0:00:36]} 32. Qf6 {[%emt 0:00:21]} Qxf6 {[%emt 0:04:08]} 33. Rxf6 {[%emt 0:00:02]} Re6 {[%emt 0:01:05]} 34. Rxe6 {[%emt 0:00:04]} fxe6 {[%emt 0:00:04]} 35. Nh5 {[%emt 0:00:02]} Rc7 {[%emt 0:06:22]} 36. Rg1 {[%emt 0:01:40]} Ne8 {[%emt 0:00:36]} 37. b3 {[%emt 0:02:45]} Rf7 {[%emt 0:01:10]} 38. a4 {[%emt 0:00:20]} bxa4 {[%emt 0:00:52]} 39. bxa4 {[%emt 0:00:04]} Nf6 {[%emt 0:00:34]} 40. Nxf6+ {[%emt 0:00:00]} Rxf6 {[%emt 0:00:00]} 41. a5 {[%emt 0:00:00]} Rf7 {[%emt 0:00:00]} 42. Rc1 {[%emt 0:00:00]} Rc7 {[%emt 0:00:00]} 43. Kg3 {[%emt 0:00:00]} Kxg7 {[%emt 0:00:00]} 44. Kh4 {[%emt 0:00:00]} Kg6 {[%emt 0:00:00]} 45. Rg1+ {[%emt 0:00:00]} Kh6 {[%emt 0:00:00]} 46. a6 {[%emt 0:00:00]} Ra7 {[%emt 0:00:00]} 47. Ra1 {[%emt 0:00:00]} Kg6 {[%emt 0:00:00]} 48. Kg4 {[%emt 0:00:00]} Kh6 {[%emt 0:00:00]} 49. Kf3 {[%emt 0:00:00]} Kg5 {[%emt 0:00:00]} 50. Ke3 {[%emt 0:00:00]} h5 {[%emt 0:00:00]} 51. Ra5 {[%emt 0:04:07]} Kg4 {[%emt 0:00:00]} 52. Rxc5 {[%emt 0:03:59]} Rxa6 {[%emt 0:00:00]} 53. Rc8 {[%emt 0:00:02]} h4 {[%emt 0:00:00]} 54. Rg8+ {[%emt 0:00:03]} Kh3 {[%emt 0:00:00]} 55. Rg5 {[%emt 0:00:08]} Kh2 {[%emt 0:03:11]} 56. Rxe5 {[%emt 0:00:15]} h3 {[%emt 0:00:07]} 57. d4 {[%emt 0:02:08]} Kg3 {[%emt 0:01:13]} 58. Rg5+ {[%emt 0:00:04]} Kh4 {[%emt 0:00:27]} 59. Rg8 {[%emt 0:01:01]} h2 {[%emt 0:01:04]} 60. Rh8+ {[%emt 0:00:20]} Kg3 {[%emt 0:00:05]} 61. Rg8+ {[%emt 0:00:12]} Kh3 {[%emt 0:00:09]} 62. Rh8+ {[%emt 0:00:15]} Kg2 63. Rg8+ {[%emt 0:00:02]} Kf1 {[%emt 0:02:39]} 64. Rf8+ {[%emt 0:00:19]} Kg1 {[%emt 0:00:19]} 65. Rg8+ {[%emt 0:00:04]} Kh1 {[%emt 0:00:19]} 66. d5 {[%emt 0:02:27]} Ra3+ {[%emt 0:00:29]} 67. Kf2 {[%emt 0:00:15]} Ra2+ {[%emt 0:00:26]} 68. Kf1 {[%emt 0:00:21]} exd5 {[%emt 0:00:31]} 69. exd5 {[%emt 0:00:06]} Rd2 {[%emt 0:00:20]} 70. Rg5 {[%emt 0:00:19]} Rxd5 {[%emt 0:00:19]} 71. Rxd5 {[%emt 0:00:07]} 1/2-1/2

[Event "Polugaevsky Memorial 2019"]
[Site "Samara"]
[Date "2019.07.16"]
[Round "7.2"]
[White "Goganov, Aleksey"]
[Black "Aukhatov, Roman"]
[Result "1/2-1/2"]
[ECO "D26"]
[WhiteElo "2561"]
[BlackElo "2119"]
[Annotator "ChessBase"]
[PlyCount "147"]
[EventDate "2019.07.10"]
[EventType "swiss"]
[EventCountry "RUS"]
[SourceTitle "playchess.com"]
[Source "ChessBase"]
[SourceQuality "1"]
[TimeControl "5400+30"]

1. d4 {[%emt 0:00:00]} d5 {[%emt 0:00:00]} 2. c4 {[%emt 0:00:00]} dxc4 {[%emt 0:00:00]} 3. Nf3 {[%emt 0:00:35]} Nf6 {[%emt 0:00:00]} 4. e3 {[%emt 0:00:03]} e6 {[%emt 0:00:00]} 5. Bxc4 {[%emt 0:00:04]} c5 {[%emt 0:00:01]} 6. O-O {[%emt 0:00:06]} cxd4 {[%emt 0:00:05]} 7. Qxd4 {[%emt 0:04:56]} Qxd4 {[%emt 0:00:21]} 8. Nxd4 {[%emt 0:00:12]} Be7 {[%emt 0:02:19]} 9. Be2 {[%emt 0:15:46]} O-O {[%emt 0:02:40]} 10. Nc3 {[%emt 0:00:04]} e5 {[%emt 0:00:50]} 11. Ndb5 {[%emt 0:03:21]} Nc6 {[%emt 0:00:13]} 12. Nc7 {[%emt 0:02:51]} Rb8 {[%emt 0:00:06]} 13. Rd1 {[%emt 0:01:39]} Rd8 {[%emt 0:01:49]} 14. N7d5 {[%emt 0:01:30]} Nxd5 {[%emt 0:00:17]} 15. Nxd5 {[%emt 0:00:04]} Bf8 {[%emt 0:01:29]} 16. Nc3 {[%emt 0:06:42]} Be6 {[%emt 0:01:00]} 17. Bd2 {[%emt 0:01:20]} Be7 {[%emt 0:00:58]} 18. Be1 {[%emt 0:00:05]} Rxd1 {[%emt 0:01:06]} 19. Rxd1 {[%emt 0:00:04]} Rd8 {[%emt 0:00:07]} 20. Rxd8+ {[%emt 0:00:07]} Bxd8 {[%emt 0:00:05]} 21. a3 {[%emt 0:02:04]} a6 {[%emt 0:02:09]} 22. g4 {[%emt 0:04:12]} Be7 {[%emt 0:05:03]} 23. Bf3 {[%emt 0:00:08]} g6 {[%emt 0:02:00]} 24. Nd5 {[%emt 0:01:49]} Bd8 {[%emt 0:00:11]} 25. Nb4 {[%emt 0:02:59]} Nxb4 {[%emt 0:01:09]} 26. Bxb4 {[%emt 0:00:04]} b6 {[%emt 0:00:30]} 27. Kg2 {[%emt 0:02:21]} f6 {[%emt 0:01:43]} 28. Bd6 {[%emt 0:00:57]} Kf7 {[%emt 0:00:49]} 29. Kg3 {[%emt 0:00:54]} a5 {[%emt 0:00:28]} 30. Bb7 {[%emt 0:03:45]} Be7 {[%emt 0:00:40]} 31. Bc7 {[%emt 0:00:40]} Bc5 {[%emt 0:00:08]} 32. h4 {[%emt 0:00:36]} h6 {[%emt 0:00:20]} 33. g5 {[%emt 0:01:09]} hxg5 {[%emt 0:00:09]} 34. hxg5 {[%emt 0:00:01]} Ke7 {[%emt 0:01:44]} 35. gxf6+ {[%emt 0:00:20]} Kxf6 {[%emt 0:00:05]} 36. Bd8+ {[%emt 0:00:02]} Kf7 {[%emt 0:00:13]} 37. Kh4 {[%emt 0:04:06]} Be7+ {[%emt 0:16:01]} 38. Bxe7 {[%emt 0:00:15]} Kxe7 {[%emt 0:00:04]} 39. Kg5 {[%emt 0:00:08]} Bf5 {[%emt 0:00:06]} 40. e4 {[%emt 0:00:00]} Bd7 {[%emt 0:00:00]} 41. Kxg6 {[%emt 0:00:00]} Be6 {[%emt 0:00:00]} 42. Kg5 {[%emt 0:00:00]} Bd7 {[%emt 0:00:00]} 43. Bd5 {[%emt 0:00:00]} a4 {[%emt 0:00:00]} 44. Bg8 {[%emt 0:00:00]} Bh3 {[%emt 0:03:57]} 45. Bc4 {[%emt 0:00:00]} Bd7 {[%emt 0:01:03]} 46. f4 {[%emt 0:00:00]} exf4 {[%emt 0:00:07]} 47. Kxf4 {[%emt 0:00:00]} Kd6 {[%emt 0:01:38]} 48. Bf7 {[%emt 0:00:00]} Kc5 {[%emt 0:22:24]} 49. Ke3 {[%emt 0:00:00]} Bb5 {[%emt 0:12:01]} 50. e5 {[%emt 0:00:00]} Bc6 {[%emt 0:00:09]} 51. Ba2 {[%emt 0:00:00]} b5 {[%emt 0:05:48]} 52. e6 {[%emt 0:00:00]} b4 {[%emt 0:02:18]} 53. axb4+ {[%emt 0:00:00]} Kxb4 {[%emt 0:00:04]} 54. Kd4 {[%emt 0:00:00]} a3 {[%emt 0:00:09]} 55. bxa3+ {[%emt 0:00:00]} Kxa3 {[%emt 0:00:05]} 56. Bd5 {[%emt 0:03:32]} Be8 {[%emt 0:00:30]} 57. Kc5 {[%emt 0:05:11]} Kb2 {[%emt 0:00:39]} 58. e7 {[%emt 0:01:36]} Kc3 {[%emt 0:00:07]} 59. Bc4 {[%emt 0:00:13]} Bh5 {[%emt 0:02:17]} 60. Bb5 {[%emt 0:00:27]} Bf7 {[%emt 0:01:10]} 61. Bf1 {[%emt 0:00:38]} Be8 {[%emt 0:01:09]} 62. Kd5 {[%emt 0:00:03]} Kd2 {[%emt 0:03:41]} 63. Kd6 {[%emt 0:00:36]} Ke3 {[%emt 0:00:06]} 64. Kc7 {[%emt 0:00:01]} Kd4 {[%emt 0:00:11]} 65. Kd8 {[%emt 0:00:03]} Bh5 {[%emt 0:00:13]} 66. Bb5 {[%emt 0:00:27]} Ke5 {[%emt 0:00:22]} 67. Be8 {[%emt 0:00:02]} Be2 {[%emt 0:00:12]} 68. Bd7 {[%emt 0:00:03]} Bh5 {[%emt 0:00:07]} 69. Be8 {[%emt 0:00:04]} Be2 {[%emt 0:00:05]} 70. Bg6 {[%emt 0:00:20]} Bb5 {[%emt 0:00:07]} 71. Bd3 {[%emt 0:00:01]} Ba4 {[%emt 0:00:09]} 72. Bc2 {[%emt 0:00:02]} Bb5 {[%emt 0:00:05]} 73. e8=B {[%emt 0:00:08]} Bxe8 {[%emt 0:00:08]} 74. Kxe8 {[%emt 0:00:03]} 1/2-1/2

[Event "Polugaevsky Memorial 2019"]
[Site "Samara"]
[Date "2019.07.16"]
[Round "7.3"]
[White "Shaposhnikov, Evgeny"]
[Black "Sidorov, Anatoly"]
[Result "1-0"]
[ECO "B06"]
[WhiteElo "2575"]
[BlackElo "2321"]
[Annotator "ChessBase"]
[PlyCount "37"]
[EventDate "2019.07.10"]
[EventType "swiss"]
[EventCountry "RUS"]
[SourceTitle "playchess.com"]
[Source "ChessBase"]
[SourceQuality "1"]
[TimeControl "5400+30"]

1. Nf3 {[%emt 0:07:07]} g6 {[%emt 0:00:00]} 2. e4 {[%emt 0:00:26]} Bg7 {[%emt 0:00:00]} 3. d4 {[%emt 0:00:20]} d6 {[%emt 0:00:00]} 4. Nc3 {[%emt 0:00:13]} c6 {[%emt 0:00:09]} 5. a4 {[%emt 0:00:41]} a5 {[%emt 0:04:14]} 6. h3 {[%emt 0:01:19]} Qb6 {[%emt 0:07:11]} 7. Bc4 {[%emt 0:01:46]} Nd7 {[%emt 0:03:54]} 8. O-O {[%emt 0:00:48]} e5 {[%emt 0:02:29]} 9. Be3 {[%emt 0:05:10]} exd4 {[%emt 0:11:23]} 10. Nxd4 {[%emt 0:00:11]} Qc7 {[%emt 0:00:10]} 11. Ndb5 {[%emt 0:01:08]} cxb5 {[%emt 0:00:41]} 12. Nxb5 {[%emt 0:00:07]} Qd8 {[%emt 0:06:12]} 13. Nxd6+ {[%emt 0:03:13]} Kf8 {[%emt 0:01:12]} 14. Nxf7 {[%emt 0:01:59]} Qe7 {[%emt 0:00:56]} 15. e5 {[%emt 0:16:34]} Nxe5 {[%emt 0:14:00]} 16. Bc5 {[%emt 0:01:52]} Nxf7 {[%emt 0:00:03]} 17. Qf3 {[%emt 0:00:43]} Bf5 {[%emt 0:06:36]} 18. Bxe7+ {[%emt 0:00:46]} Nxe7 {[%emt 0:00:07]} 19. Bxf7 {[%emt 0:00:23]} 1-0

[Event "Polugaevsky Memorial 2019"]
[Site "Samara"]
[Date "2019.07.16"]
[Round "7.4"]
[White "Zhigalko, Andrey"]
[Black "Goltsev, Dmitry"]
[Result "1-0"]
[ECO "C50"]
[WhiteElo "2549"]
[BlackElo "2304"]
[Annotator "ChessBase"]
[PlyCount "95"]
[EventDate "2019.07.10"]
[EventType "swiss"]
[EventCountry "RUS"]
[SourceTitle "playchess.com"]
[Source "ChessBase"]
[SourceQuality "1"]
[TimeControl "5400+30"]

1. e4 {[%emt 0:00:00]} e5 {[%emt 0:00:23]} 2. Nf3 {[%emt 0:00:00]} Nc6 {[%emt 0:00:03]} 3. Bc4 {[%emt 0:00:34]} Be7 {[%emt 0:02:07]} 4. O-O {[%emt 0:12:15]} Nf6 {[%emt 0:00:35]} 5. d3 {[%emt 0:01:46]} d6 {[%emt 0:00:19]} 6. c3 {[%emt 0:03:53]} O-O {[%emt 0:10:29]} 7. Re1 {[%emt 0:01:06]} Na5 {[%emt 0:05:33]} 8. Bb5 {[%emt 0:00:06]} a6 {[%emt 0:00:35]} 9. Ba4 {[%emt 0:00:04]} b5 {[%emt 0:00:06]} 10. Bc2 {[%emt 0:00:05]} c5 {[%emt 0:00:18]} 11. Nbd2 {[%emt 0:00:56]} Ne8 {[%emt 0:08:03]} 12. d4 {[%emt 0:03:51]} Nc6 {[%emt 0:05:57]} 13. a4 {[%emt 0:05:43]} Nc7 {[%emt 0:09:34]} 14. h3 {[%emt 0:03:46]} exd4 {[%emt 0:08:02]} 15. cxd4 {[%emt 0:00:17]} Nb4 {[%emt 0:01:16]} 16. Bb1 {[%emt 0:00:46]} bxa4 {[%emt 0:03:23]} 17. Rxa4 {[%emt 0:10:51]} Bd7 {[%emt 0:00:52]} 18. Ra1 {[%emt 0:00:50]} Bb5 {[%emt 0:01:20]} 19. Nf1 {[%emt 0:08:39]} Ne6 {[%emt 0:09:13]} 20. d5 {[%emt 0:10:20]} Nc7 {[%emt 0:02:25]} 21. Ne3 {[%emt 0:05:21]} Re8 {[%emt 0:04:21]} 22. Nf5 {[%emt 0:03:40]} Bf8 {[%emt 0:00:40]} 23. Ra3 {[%emt 0:07:29]} Bd7 {[%emt 0:06:01]} 24. N3h4 {[%emt 0:00:08]} g6 {[%emt 0:02:38]} 25. Rg3 {[%emt 0:00:17]} Kh8 {[%emt 0:04:18]} 26. Bg5 {[%emt 0:07:18]} f6 {[%emt 0:00:13]} 27. Bf4 {[%emt 0:04:04]} Bxf5 {[%emt 0:01:11]} 28. Nxf5 {[%emt 0:01:11]} gxf5 {[%emt 0:01:14]} 29. Qh5 {[%emt 0:00:27]} Qd7 {[%emt 0:05:37]} 30. Bd2 {[%emt 0:01:47]} Nb5 {[%emt 0:01:59]} 31. e5 {[%emt 0:00:32]} Rxe5 {[%emt 0:01:44]} 32. Rxe5 {[%emt 0:00:11]} dxe5 {[%emt 0:00:55]} 33. Bxf5 {[%emt 0:00:04]} Qe7 {[%emt 0:02:00]} 34. Be6 {[%emt 0:02:39]} Bg7 {[%emt 0:00:01]} 35. Bf5 {[%emt 0:01:29]} Bf8 {[%emt 0:00:06]} 36. Be6 {[%emt 0:00:06]} Bg7 {[%emt 0:00:01]} 37. Rg4 {[%emt 0:02:20]} Nd6 {[%emt 0:01:18]} 38. Rh4 {[%emt 0:00:16]} Bf8 {[%emt 0:00:03]} 39. Rg4 {[%emt 0:00:09]} Bg7 {[%emt 0:00:21]} 40. Rh4 {[%emt 0:00:00]} Bf8 {[%emt 0:00:00]} 41. Be3 {[%emt 0:00:00]} Nd3 {[%emt 0:00:00]} 42. Qg6 {[%emt 0:00:00]} Qg7 {[%emt 0:00:00]} 43. Qxd3 {[%emt 0:00:00]} e4 {[%emt 0:00:00]} 44. Qc2 {[%emt 0:00:00]} f5 {[%emt 0:00:00]} 45. Qxc5 {[%emt 0:00:00]} Qe7 {[%emt 0:00:00]} 46. Rh5 {[%emt 0:00:00]} Rb8 {[%emt 0:00:00]} 47. Bf4 {[%emt 0:00:00]} Rd8 {[%emt 0:00:00]} 48. Bg5 {[%emt 0:00:00]} 1-0